Department Family,Entity,Date,Expense Type,Expense Area,Supplier,Transaction Number,Amount,Description,Supplier Postcode,Supplier Type,Expenditure Type
DWP,ILF,02/01/14,Bespoke Software (Cost),Central,Dynamic Data Systems Ltd,144155,3096,Bespoke software development, NG16 1RL,,Administrative
DWP,ILF,03/01/14,Other Prepayments,Central,Data Voice & Video Sol,144220,3900,Engineer work for Government Secure Internet, SK1 3TZ,,Administrative
DWP,ILF,23/01/2014,Other Prepayments,Central,QA Ltd,144617,1207.8,Employee Training Provider,LS12 6BD,,Administrative
DWP,ILF,23/01/2014,Other Prepayments,Central,Webdesign Training,144618,750,Training courses,NH1 5FS,,Administrative
DWP,ILF,22/01/2014,Other Prepayments,Central,The Wellbeing Centre,144602,976,Counselling service, NG2 6AX.,,Administrative
DWP,ILF,28/01/2014,Other Prepayments,Central,GovNet Communications,144662,644.4,Training courses, M1 6PP,,Administrative
DWP,ILF,06/01/14,Independent Assessor visits,Social Work,Independent Assessor Costs,144227,534.6,Assessment of social care needs and recommendation of ILF funding contribution,0,,Programme
DWP,ILF,06/01/14,Independent Assessor visits,Social Work,Independent Assessor Costs,144228,2070,Assessment of social care needs and recommendation of ILF funding contribution,0,,Programme
DWP,ILF,06/01/14,Independent Assessor visits,Social Work,Independent Assessor Costs,144229,2585.7,Assessment of social care needs and recommendation of ILF funding contribution,0,,Programme
DWP,ILF,06/01/14,Independent Assessor visits,Social Work,Independent Assessor Costs,144230,1715.85,Assessment of social care needs and recommendation of ILF funding contribution,0,,Programme
DWP,ILF,06/01/14,Independent Assessor visits,Social Work,Independent Assessor Costs,144231,1433.7,Assessment of social care needs and recommendation of ILF funding contribution,0,,Programme
DWP,ILF,06/01/14,Independent Assessor visits,Social Work,Independent Assessor Costs,144232,588.15,Assessment of social care needs and recommendation of ILF funding contribution,0,,Programme
DWP,ILF,06/01/14,Independent Assessor visits,Social Work,Independent Assessor Costs,144234,1090.45,Assessment of social care needs and recommendation of ILF funding contribution,0,,Programme
DWP,ILF,06/01/14,Independent Assessor visits,Social Work,Independent Assessor Costs,144235,740.7,Assessment of social care needs and recommendation of ILF funding contribution,0,,Programme
DWP,ILF,06/01/14,Independent Assessor visits,Social Work,Independent Assessor Costs,144236,1070.4,Assessment of social care needs and recommendation of ILF funding contribution,0,,Programme
DWP,ILF,06/01/14,Independent Assessor visits,Social Work,Independent Assessor Costs,144239,1968.5,Assessment of social care needs and recommendation of ILF funding contribution,0,,Programme
DWP,ILF,06/01/14,Independent Assessor visits,Social Work,Independent Assessor Costs,144239,673.7,Assessment of social care needs and recommendation of ILF funding contribution,0,,Programme
DWP,ILF,06/01/14,Independent Assessor visits,Social Work,Independent Assessor Costs,144240,1703.7,Assessment of social care needs and recommendation of ILF funding contribution,0,,Programme
DWP,ILF,06/01/14,Independent Assessor visits,Social Work,Independent Assessor Costs,144241,1702.35,Assessment of social care needs and recommendation of ILF funding contribution,0,,Programme
DWP,ILF,06/01/14,Independent Assessor visits,Social Work,Independent Assessor Costs,144241,989.1,Assessment of social care needs and recommendation of ILF funding contribution,0,,Programme
DWP,ILF,06/01/14,Independent Assessor visits,Social Work,Independent Assessor Costs,144242,1176.75,Assessment of social care needs and recommendation of ILF funding contribution,0,,Programme
DWP,ILF,13/01/2014,Independent Assessor visits,Social Work,Independent Assessor Costs,144371,720,Assessment of social care needs and recommendation of ILF funding contribution,0,,Programme
DWP,ILF,13/01/2014,Independent Assessor visits,Social Work,Independent Assessor Costs,144371,1529.95,Assessment of social care needs and recommendation of ILF funding contribution,0,,Programme
DWP,ILF,13/01/2014,Independent Assessor visits,Social Work,Independent Assessor Costs,144372,2752.2,Assessment of social care needs and recommendation of ILF funding contribution,0,,Programme
DWP,ILF,13/01/2014,Independent Assessor visits,Social Work,Independent Assessor Costs,144373,524.15,Assessment of social care needs and recommendation of ILF funding contribution,0,,Programme
DWP,ILF,13/01/2014,Independent Assessor visits,Social Work,Independent Assessor Costs,144373,2312.45,Assessment of social care needs and recommendation of ILF funding contribution,0,,Programme
DWP,ILF,13/01/2014,Independent Assessor visits,Social Work,Independent Assessor Costs,144374,1155.4,Assessment of social care needs and recommendation of ILF funding contribution,0,,Programme
DWP,ILF,13/01/2014,Independent Assessor visits,Social Work,Independent Assessor Costs,144375,576.9,Assessment of social care needs and recommendation of ILF funding contribution,0,,Programme
DWP,ILF,13/01/2014,Independent Assessor visits,Social Work,Independent Assessor Costs,144377,1956.6,Assessment of social care needs and recommendation of ILF funding contribution,0,,Programme
DWP,ILF,13/01/2014,Independent Assessor visits,Social Work,Independent Assessor Costs,144378,1523.95,Assessment of social care needs and recommendation of ILF funding contribution,0,,Programme
DWP,ILF,13/01/2014,Independent Assessor visits,Social Work,Independent Assessor Costs,144379,2614.55,Assessment of social care needs and recommendation of ILF funding contribution,0,,Programme
DWP,ILF,13/01/2014,Independent Assessor visits,Social Work,Independent Assessor Costs,144380,1579.5,Assessment of social care needs and recommendation of ILF funding contribution,0,,Programme
DWP,ILF,13/01/2014,Independent Assessor visits,Social Work,Independent Assessor Costs,144381,1518.8,Assessment of social care needs and recommendation of ILF funding contribution,0,,Programme
DWP,ILF,13/01/2014,Independent Assessor visits,Social Work,Independent Assessor Costs,144382,3845.25,Assessment of social care needs and recommendation of ILF funding contribution,0,,Programme
DWP,ILF,20/01/2014,Independent Assessor visits,Social Work,Independent Assessor Costs,144504,2716.65,Assessment of social care needs and recommendation of ILF funding contribution,0,,Programme
DWP,ILF,20/01/2014,Independent Assessor visits,Social Work,Independent Assessor Costs,144505,1460.25,Assessment of social care needs and recommendation of ILF funding contribution,0,,Programme
DWP,ILF,20/01/2014,Independent Assessor visits,Social Work,Independent Assessor Costs,144506,2366.55,Assessment of social care needs and recommendation of ILF funding contribution,0,,Programme
DWP,ILF,20/01/2014,Independent Assessor visits,Social Work,Independent Assessor Costs,144508,1426.5,Assessment of social care needs and recommendation of ILF funding contribution,0,,Programme
DWP,ILF,20/01/2014,Independent Assessor visits,Social Work,Independent Assessor Costs,144511,669.2,Assessment of social care needs and recommendation of ILF funding contribution,0,,Programme
DWP,ILF,20/01/2014,Independent Assessor visits,Social Work,Independent Assessor Costs,144512,1715.85,Assessment of social care needs and recommendation of ILF funding contribution,0,,Programme
DWP,ILF,20/01/2014,Independent Assessor visits,Social Work,Independent Assessor Costs,144513,1297.35,Assessment of social care needs and recommendation of ILF funding contribution,0,,Programme
DWP,ILF,20/01/2014,Independent Assessor visits,Social Work,Independent Assessor Costs,144513,1018.5,Assessment of social care needs and recommendation of ILF funding contribution,0,,Programme
DWP,ILF,20/01/2014,Independent Assessor visits,Social Work,Independent Assessor Costs,144514,990.9,Assessment of social care needs and recommendation of ILF funding contribution,0,,Programme
DWP,ILF,20/01/2014,Independent Assessor visits,Social Work,Independent Assessor Costs,144515,2260.35,Assessment of social care needs and recommendation of ILF funding contribution,0,,Programme
DWP,ILF,20/01/2014,Independent Assessor visits,Social Work,Independent Assessor Costs,144515,1862.55,Assessment of social care needs and recommendation of ILF funding contribution,0,,Programme
DWP,ILF,20/01/2014,Independent Assessor visits,Social Work,Independent Assessor Costs,144516,2577.6,Assessment of social care needs and recommendation of ILF funding contribution,0,,Programme
DWP,ILF,20/01/2014,Independent Assessor visits,Social Work,Independent Assessor Costs,144517,1575.45,Assessment of social care needs and recommendation of ILF funding contribution,0,,Programme
DWP,ILF,20/01/2014,Independent Assessor visits,Social Work,Independent Assessor Costs,144518,1035,Assessment of social care needs and recommendation of ILF funding contribution,0,,Programme
DWP,ILF,20/01/2014,Independent Assessor visits,Social Work,Independent Assessor Costs,144519,961.65,Assessment of social care needs and recommendation of ILF funding contribution,0,,Programme
DWP,ILF,24/01/2014,Independent Assessor visits,Social Work,Independent Assessor Costs,144620,2211.75,Assessment of social care needs and recommendation of ILF funding contribution,0,,Programme
DWP,ILF,24/01/2014,Independent Assessor visits,Social Work,Independent Assessor Costs,144621,1111.5,Assessment of social care needs and recommendation of ILF funding contribution,0,,Programme
DWP,ILF,24/01/2014,Independent Assessor visits,Social Work,Independent Assessor Costs,144622,2142.45,Assessment of social care needs and recommendation of ILF funding contribution,0,,Programme
DWP,ILF,24/01/2014,Independent Assessor visits,Social Work,Independent Assessor Costs,144626,1935.45,Assessment of social care needs and recommendation of ILF funding contribution,0,,Programme
DWP,ILF,24/01/2014,Independent Assessor visits,Social Work,Independent Assessor Costs,144627,2108.25,Assessment of social care needs and recommendation of ILF funding contribution,0,,Programme
DWP,ILF,24/01/2014,Independent Assessor visits,Social Work,Independent Assessor Costs,144628,804.6,Assessment of social care needs and recommendation of ILF funding contribution,0,,Programme
DWP,ILF,24/01/2014,Independent Assessor visits,Social Work,Independent Assessor Costs,144629,1300.5,Assessment of social care needs and recommendation of ILF funding contribution,0,,Programme
DWP,ILF,24/01/2014,Independent Assessor visits,Social Work,Independent Assessor Costs,144631,1143,Assessment of social care needs and recommendation of ILF funding contribution,0,,Programme
DWP,ILF,24/01/2014,Independent Assessor visits,Social Work,Independent Assessor Costs,144632,2539.35,Assessment of social care needs and recommendation of ILF funding contribution,0,,Programme
DWP,ILF,28/01/2014,Independent Assessor visits,Social Work,Reed Business Info Ltd,144660,3879.6,advertisement fees, RH16 3DH,,Administrative
DWP,ILF,10/01/14,Rent & Facilities Lease,Facilities,Land Securities Trillium,144346,69014.5,"Building lease,maintenance and utilities", LS11 9DX,,Administrative
DWP,ILF,10/01/14,Rent & Facilities Lease,Facilities,Land Securities Trillium,144347,69014.5,"Building lease,maintenance and utilities", LS11 9DX,,Administrative
DWP,ILF,10/01/14,Rent & Facilities Lease,Facilities,Land Securities Trillium,144348,1410.44,"Building lease,maintenance and utilities", LS11 9DX,,Administrative
DWP,ILF,10/01/14,Rent & Facilities Lease,Facilities,Land Securities Trillium,144350,1410.44,"Building lease,maintenance and utilities", LS11 9DX,,Administrative
DWP,ILF,20/01/2014,Additional Facilities,Facilities,Nottingham City Council,144493,1102.2,Rates , NG1 2DE,,Administrative
DWP,ILF,20/01/2014,Additional Facilities,Facilities,TNT UK Ltd,144502,3136.58,Courier service, BL4 9AR,,Administrative
DWP,ILF,31/01/2014,Utilities,Facilities,DWP,144768,3610.47,Business subscription iro Grant Recovery, FY5 3TA,,Administrative
DWP,ILF,15/01/2014,Rates,Facilities,Nottingham City Council,144435,6947,Rates , NG1 2DE,,Administrative
DWP,ILF,23/01/2014,Postage,Facilities,Royal Mail,144614,8000,Postal services, PE4 5PG,,Administrative
DWP,ILF,08/01/14,Printing Services,Facilities,Williams Lea,144303,705.13,Office Printing,W1F8PR,,Administrative
DWP,ILF,08/01/14,Printing Services,Facilities,Williams Lea,144307,1477.93,Office Printing,W1F8PR,,Administrative
DWP,ILF,20/01/2014,Business Meeting Costs,Corporate Affairs,Calders,144501,606.67,Hotel bookings,LS16 6RF,,Administrative
DWP,ILF,29/01/2014,Software Licensing,Human Resources,Ceridian Ltd,144734,1083.67,Payroll and HR services, E14 9GE,,Administrative
DWP,ILF,31/01/2014,Software Licensing,Human Resources,Ceridian Ltd,144772,508.37,Payroll and HR services, E14 9GE,,Administrative
DWP,ILF,06/01/14,Software Licensing,Information & Governance,DELL,144264,744,Software Licensing,0,,Administrative
DWP,ILF,03/01/14,Business Continuity,Information & Governance,Node4,144219,1410,Website services, DE24 8HZ,,Administrative
DWP,ILF,03/01/14,Information Security,Information & Governance,Data Voice & Video Sol,144220,1950,Engineer work for Government Secure Internet, SK1 3TZ,,Administrative
DWP,ILF,28/01/2014,Information Security,Information & Governance,Data Voice & Video Sol,144696,1170,Engineer work for Government Secure Internet, SK1 3TZ,,Administrative
DWP,ILF,03/01/14,Website Services,Information & Governance,Vodafone,144218,10799.46,Telephone services,RG14 2FN,,Administrative
DWP,ILF,03/01/14,Website Services,Information & Governance,Node4,144219,540,Website services, DE24 8HZ,,Administrative
DWP,ILF,20/01/2014,Equipment Servicing,Information & Governance,Ricoh UK Ltd,144499,1301.15,Service Charge for Printing Equipment, TW13 7HG,,Administrative
DWP,ILF,20/01/2014,Equipment Servicing,Information & Governance,Ricoh UK Ltd,144500,705.47,Service Charge for Printing Equipment, TW13 7HG,,Administrative
DWP,ILF,13/01/2014,Misc IT Costs,Information & Governance,XMA Ltd,144385,1583.79,Printer Toner Cartidges,NG11 7EP,,Administrative
DWP,ILF,17/01/2014,Legal Costs,Payment Security,Shakespeares,144491,1144.2,"Provision of Legal Service iro debt recovery, human resource, procurement or organisational litigation",0,,Administrative
